[Event "*** Titled Tuesday Blitz"]
[Site "Chess.com"]
[Date "2021.03.02"]
[Round "2"]
[White "anon219"]
[Black "eduardoperalta"]
[Result "1-0"]
[WhiteElo "2845"]
[BlackElo "2534"]
[TimeControl "180+1"]
[EndTime "10:17:38 PST"]
[Termination "anon219 won by checkmate"]

1. e4 {[%clk 0:03:00.9]} 1... c5 {[%clk 0:02:59.3]} 2. Nf3 {[%clk 0:03:00.9]}
2... d6 {[%clk 0:02:59]} 3. d4 {[%clk 0:02:58.5]} 3... cxd4 {[%clk 0:02:58.8]}
4. Nxd4 {[%clk 0:02:59.4]} 4... Nf6 {[%clk 0:02:58.9]} 5. Nc3 {[%clk 0:02:59.6]}
5... Nc6 {[%clk 0:02:58.5]} 6. f3 {[%clk 0:02:57.9]} 6... e5 {[%clk 0:02:57.8]}
7. Nb3 {[%clk 0:02:57.4]} 7... Be7 {[%clk 0:02:57.2]} 8. Be3 {[%clk 0:02:55.5]}
8... O-O {[%clk 0:02:56.7]} 9. Qd2 {[%clk 0:02:53.1]} 9... a5 {[%clk 0:02:56.4]}
10. Bb5 {[%clk 0:02:48.6]} 10... Na7 {[%clk 0:02:55.9]} 11. Bxa7 {[%clk
0:02:46.9]} 11... Rxa7 {[%clk 0:02:55.1]} 12. a4 {[%clk 0:02:41.3]} 12... Be6
{[%clk 0:02:53.9]} 13. O-O-O {[%clk 0:02:39.6]} 13... Nd7 {[%clk 0:02:45.8]} 14.
Kb1 {[%clk 0:02:37.9]} 14... Nc5 {[%clk 0:02:33.3]} 15. Nxc5 {[%clk 0:02:33.7]}
15... dxc5 {[%clk 0:02:32.9]} 16. Qe2 {[%clk 0:02:34.6]} 16... Qc8 {[%clk
0:02:28.4]} 17. Bc4 {[%clk 0:02:31]} 17... b6 {[%clk 0:02:27.6]} 18. Bxe6 {[%clk
0:02:27.7]} 18... Qxe6 {[%clk 0:02:21.5]} 19. Rd5 {[%clk 0:02:24.7]} 19... Raa8
{[%clk 0:02:16.2]} 20. Nb5 {[%clk 0:02:22.9]} 20... Rac8 {[%clk 0:02:13.4]} 21.
Rhd1 {[%clk 0:02:21.1]} 21... c4 {[%clk 0:02:11.5]} 22. c3 {[%clk 0:02:14.9]}
22... g6 {[%clk 0:02:10.6]} 23. Rd7 {[%clk 0:02:06.4]} 23... Bc5 {[%clk
0:02:06.7]} 24. R1d5 {[%clk 0:02:02.1]} 24... Bg1 {[%clk 0:01:51]} 25. R5d6
{[%clk 0:01:56.7]} 25... Qe8 {[%clk 0:01:49.9]} 26. Nc7 {[%clk 0:01:55.7]} 26...
Rxc7 {[%clk 0:01:47.4]} 27. Rxc7 {[%clk 0:01:56.6]} 27... Qxa4 {[%clk
0:01:46.5]} 28. Qxc4 {[%clk 0:01:55.1]} 28... Qe8 {[%clk 0:01:40.9]} 29. h4
{[%clk 0:01:46.9]} 29... Bc5 {[%clk 0:01:40.4]} 30. Rdd7 {[%clk 0:01:44.2]}
30... h5 {[%clk 0:01:35]} 31. Qd5 {[%clk 0:01:42]} 31... a4 {[%clk 0:01:31.8]}
32. Qc6 {[%clk 0:01:36.6]} 32... Kg7 {[%clk 0:01:16.4]} 33. Rxf7+ {[%clk
0:01:19.1]} 33... Qxf7 {[%clk 0:01:05]} 34. Rxf7+ {[%clk 0:01:18.8]} 34... Rxf7
{[%clk 0:01:05.9]} 35. Qxa4 {[%clk 0:01:19.3]} 35... Bf2 {[%clk 0:01:05.9]} 36.
Qb5 {[%clk 0:01:18.8]} 36... Re7 {[%clk 0:01:03.3]} 37. Kc2 {[%clk 0:01:17.7]}
37... Kf6 {[%clk 0:01:02.7]} 38. b4 {[%clk 0:01:01.4]} 38... Re6 {[%clk
0:01:01.9]} 39. c4 {[%clk 0:01:00.7]} 39... Bxh4 {[%clk 0:00:45.4]} 40. c5
{[%clk 0:01:00.7]} 40... bxc5 {[%clk 0:00:45.1]} 41. bxc5 {[%clk 0:01:01.6]}
41... Re7 {[%clk 0:00:42]} 42. Qb6+ {[%clk 0:00:59.2]} 42... Kf7 {[%clk
0:00:39.3]} 43. c6 {[%clk 0:00:58.5]} 43... Re6 {[%clk 0:00:13.5]} 44. Qb7+
{[%clk 0:00:57.7]} 44... Be7 {[%clk 0:00:12.9]} 45. c7 {[%clk 0:00:57.6]} 45...
g5 {[%clk 0:00:13.8]} 46. c8=Q {[%clk 0:00:57.5]} 46... h4 {[%clk 0:00:13.3]}
47. Qbb8 {[%clk 0:00:52.8]} 47... Rf6 {[%clk 0:00:09.6]} 48. Qg8# {[%clk
0:00:52.5]} 1-0

[Event "*** Titled Tuesday Blitz"]
[Site "Chess.com"]
[Date "2021.03.02"]
[Round "2"]
[White "eldur16"]
[Black "nrvisakh"]
[Result "0-1"]
[WhiteElo "2526"]
[BlackElo "2800"]
[TimeControl "180+1"]
[EndTime "10:17:38 PST"]
[Termination "nrvisakh won by resignation"]

1. Nf3 {[%clk 0:03:00.9]} 1... g6 {[%clk 0:02:59.1]} 2. e4 {[%clk 0:02:59.5]}
2... Bg7 {[%clk 0:02:59.1]} 3. d4 {[%clk 0:02:59.3]} 3... c5 {[%clk 0:02:53.7]}
4. d5 {[%clk 0:02:58.4]} 4... d6 {[%clk 0:02:52.3]} 5. Nc3 {[%clk 0:02:57.7]}
5... Nf6 {[%clk 0:02:51.9]} 6. Be2 {[%clk 0:02:56.7]} 6... O-O {[%clk
0:02:51.9]} 7. O-O {[%clk 0:02:56.7]} 7... e6 {[%clk 0:02:46]} 8. Bf4 {[%clk
0:02:55.4]} 8... exd5 {[%clk 0:02:43]} 9. exd5 {[%clk 0:02:55.1]} 9... a6 {[%clk
0:02:41.6]} 10. a4 {[%clk 0:02:54.1]} 10... Re8 {[%clk 0:02:40.9]} 11. Nd2
{[%clk 0:02:53.6]} 11... Nbd7 {[%clk 0:02:10.6]} 12. Bxd6 {[%clk 0:02:39.4]}
12... Nb6 {[%clk 0:02:10.4]} 13. Bxc5 {[%clk 0:02:39.2]} 13... Nfxd5 {[%clk
0:02:10.3]} 14. Nxd5 {[%clk 0:02:35.1]} 14... Nxd5 {[%clk 0:02:10.4]} 15. Nc4
{[%clk 0:02:24.3]} 15... Bxb2 {[%clk 0:01:32.3]} 16. Bf3 {[%clk 0:01:39.6]}
16... Bxa1 {[%clk 0:01:26.2]} 17. Bxd5 {[%clk 0:01:38.7]} 17... Be6 {[%clk
0:01:22.7]} 18. Nd6 {[%clk 0:01:24]} 18... Be5 {[%clk 0:00:41.9]} 19. Bxb7
{[%clk 0:00:51.5]} 19... Bxd6 {[%clk 0:00:37.5]} 20. Bxd6 {[%clk 0:00:50.3]}
20... Ra7 {[%clk 0:00:30.6]} 21. Bc6 {[%clk 0:00:48.1]} 21... Bd7 {[%clk
0:00:30.4]} 22. Bd5 {[%clk 0:00:31.2]} 22... Bxa4 {[%clk 0:00:26.7]} 23. Qd4
{[%clk 0:00:20.9]} 23... Rd7 {[%clk 0:00:24.4]} 24. Qxa4 {[%clk 0:00:19.2]}
24... Rxd6 {[%clk 0:00:23.7]} 25. c4 {[%clk 0:00:19.3]} 25... Kg7 {[%clk
0:00:16.6]} 26. g3 {[%clk 0:00:19.1]} 26... h5 {[%clk 0:00:15.6]} 27. Rb1 {[%clk
0:00:19]} 27... h4 {[%clk 0:00:14.4]} 28. Rb7 {[%clk 0:00:17.9]} 28... Rxd5
{[%clk 0:00:10.5]} 29. cxd5 {[%clk 0:00:17]} 29... Re1+ {[%clk 0:00:10.2]} 30.
Kg2 {[%clk 0:00:16.4]} 30... Qxd5+ {[%clk 0:00:10.7]} 31. Kh3 {[%clk 0:00:15.7]}
31... Qxb7 {[%clk 0:00:09.6]} 0-1

[Event "*** Titled Tuesday Blitz"]
[Site "Chess.com"]
[Date "2021.03.02"]
[Round "2"]
[White "Alex-11211"]
[Black "pfalcon1949"]
[Result "1-0"]
[WhiteElo "2374"]
[BlackElo "2023"]
[TimeControl "180+1"]
[EndTime "10:17:40 PST"]
[Termination "Alex-11211 won by checkmate"]

1. e4 {[%clk 0:03:00.9]} 1... c5 {[%clk 0:02:59.6]} 2. Nf3 {[%clk 0:03:00.8]}
2... Nc6 {[%clk 0:02:59.6]} 3. Bb5 {[%clk 0:03:00.7]} 3... Nd4 {[%clk
0:02:59.1]} 4. Nxd4 {[%clk 0:02:58.3]} 4... cxd4 {[%clk 0:02:57.2]} 5. O-O
{[%clk 0:02:58.9]} 5... a6 {[%clk 0:02:49.5]} 6. Bc4 {[%clk 0:02:56.3]} 6... e6
{[%clk 0:02:48.6]} 7. d3 {[%clk 0:02:54.1]} 7... b5 {[%clk 0:02:45.9]} 8. Bb3
{[%clk 0:02:53.6]} 8... Bb7 {[%clk 0:02:45.9]} 9. f4 {[%clk 0:02:53.3]} 9... Be7
{[%clk 0:02:45.7]} 10. Nd2 {[%clk 0:02:49.2]} 10... Nf6 {[%clk 0:02:45.7]} 11.
Nf3 {[%clk 0:02:48]} 11... Qb6 {[%clk 0:02:37.7]} 12. Kh1 {[%clk 0:02:46.7]}
12... Rc8 {[%clk 0:02:37.2]} 13. Qe1 {[%clk 0:02:44.3]} 13... a5 {[%clk
0:02:37.5]} 14. a4 {[%clk 0:02:42.9]} 14... bxa4 {[%clk 0:02:31.1]} 15. Rxa4
{[%clk 0:02:43.8]} 15... Bb4 {[%clk 0:02:22.5]} 16. Bd2 {[%clk 0:02:22.4]} 16...
Bc6 {[%clk 0:02:17.5]} 17. Ra1 {[%clk 0:01:31.7]} 17... O-O {[%clk 0:02:06.7]}
18. Bxb4 {[%clk 0:01:23.5]} 18... axb4 {[%clk 0:02:04.5]} 19. Qf2 {[%clk
0:01:21.9]} 19... d5 {[%clk 0:01:26.7]} 20. e5 {[%clk 0:01:19.6]} 20... Ng4
{[%clk 0:01:06.9]} 21. Qxd4 {[%clk 0:01:18]} 21... Qxd4 {[%clk 0:00:54.8]} 22.
Nxd4 {[%clk 0:01:18.9]} 22... Ne3 {[%clk 0:00:55]} 23. Rfe1 {[%clk 0:01:01.1]}
23... Ng4 {[%clk 0:00:52.8]} 24. Ra7 {[%clk 0:00:52.8]} 24... h5 {[%clk
0:00:42.9]} 25. Kg1 {[%clk 0:00:38.3]} 25... h4 {[%clk 0:00:42]} 26. Rea1 {[%clk
0:00:32.2]} 26... Be8 {[%clk 0:00:30.4]} 27. Rb7 {[%clk 0:00:20.6]} 27... g5
{[%clk 0:00:29.9]} 28. g3 {[%clk 0:00:17.2]} 28... hxg3 {[%clk 0:00:25.1]} 29.
hxg3 {[%clk 0:00:18.1]} 29... gxf4 {[%clk 0:00:25.4]} 30. gxf4 {[%clk
0:00:18.6]} 30... Kh7 {[%clk 0:00:19.7]} 31. Kg2 {[%clk 0:00:17.2]} 31... Rg8
{[%clk 0:00:19.9]} 32. Rh1+ {[%clk 0:00:15.3]} 32... Nh6+ {[%clk 0:00:19.1]} 33.
Kf3 {[%clk 0:00:15.5]} 33... Bc6 {[%clk 0:00:17.3]} 34. Rxf7+ {[%clk 0:00:13.9]}
34... Kg6 {[%clk 0:00:14.9]} 35. Rf6+ {[%clk 0:00:13.7]} 35... Kg7 {[%clk
0:00:13.6]} 36. Nxe6+ {[%clk 0:00:12.4]} 36... Kh7 {[%clk 0:00:10.7]} 37. Rhxh6#
{[%clk 0:00:12.6]} 1-0

[Event "*** Titled Tuesday Blitz"]
[Site "Chess.com"]
[Date "2021.03.02"]
[Round "2"]
[White "sergoy"]
[Black "NicoChasin"]
[Result "1-0"]
[WhiteElo "2847"]
[BlackElo "2537"]
[TimeControl "180+1"]
[EndTime "10:17:41 PST"]
[Termination "sergoy won by resignation"]

1. d4 {[%clk 0:02:59.7]} 1... Nf6 {[%clk 0:02:58.8]} 2. c4 {[%clk 0:03:00.4]}
2... c6 {[%clk 0:02:57.5]} 3. Nf3 {[%clk 0:03:00.7]} 3... d5 {[%clk 0:02:57.9]}
4. Nc3 {[%clk 0:03:01.6]} 4... Bf5 {[%clk 0:02:58.1]} 5. cxd5 {[%clk 0:03:01.1]}
5... cxd5 {[%clk 0:02:58]} 6. Qb3 {[%clk 0:03:01.5]} 6... Qb6 {[%clk 0:02:54.5]}
7. Nxd5 {[%clk 0:03:01.2]} 7... Nxd5 {[%clk 0:02:42]} 8. Qxd5 {[%clk 0:03:01.8]}
8... e6 {[%clk 0:02:42.3]} 9. Qb3 {[%clk 0:03:02.1]} 9... Qxb3 {[%clk
0:02:36.8]} 10. axb3 {[%clk 0:03:03]} 10... Nc6 {[%clk 0:02:36.6]} 11. e3 {[%clk
0:03:03.1]} 11... Nb4 {[%clk 0:02:34.8]} 12. Bb5+ {[%clk 0:03:03]} 12... Ke7
{[%clk 0:02:33]} 13. O-O {[%clk 0:03:02.3]} 13... a6 {[%clk 0:02:32.5]} 14. Bd2
{[%clk 0:03:02.3]} 14... Kf6 {[%clk 0:02:31.9]} 15. Be2 {[%clk 0:02:34.4]} 15...
Bd6 {[%clk 0:02:26.6]} 16. Ne5 {[%clk 0:02:33.3]} 16... Rhc8 {[%clk 0:02:20.9]}
17. Nc4 {[%clk 0:02:26.3]} 17... Be7 {[%clk 0:02:12.8]} 18. Bf3 {[%clk 0:02:25]}
18... Bd3 {[%clk 0:01:48.2]} 19. Rfc1 {[%clk 0:02:19.6]} 19... Rab8 {[%clk
0:01:41.8]} 20. Ne5 {[%clk 0:02:13.4]} 20... Bb5 {[%clk 0:01:37.9]} 21. h4
{[%clk 0:01:52.6]} 21... g6 {[%clk 0:01:37.7]} 22. h5 {[%clk 0:01:45.8]} 22...
Kg7 {[%clk 0:01:37.4]} 23. h6+ {[%clk 0:01:45.6]} 23... Kf8 {[%clk 0:01:34.1]}
24. Rxc8+ {[%clk 0:01:33.5]} 24... Rxc8 {[%clk 0:01:34]} 25. Bxb7 {[%clk
0:01:34.2]} 25... Rb8 {[%clk 0:01:23.3]} 26. Be4 {[%clk 0:01:33.5]} 26... f6
{[%clk 0:01:22.3]} 27. Nc4 {[%clk 0:01:30.2]} 27... Rc8 {[%clk 0:01:19.9]} 28.
Bxb4 {[%clk 0:01:12.3]} 28... Bxb4 {[%clk 0:01:18.7]} 29. d5 {[%clk 0:01:12.9]}
29... e5 {[%clk 0:00:50.4]} 30. Bd3 {[%clk 0:01:10.3]} 30... Ke7 {[%clk
0:00:45.9]} 31. e4 {[%clk 0:01:06.6]} 31... g5 {[%clk 0:00:38]} 32. Nb6 {[%clk
0:01:02.4]} 32... Rc7 {[%clk 0:00:29.7]} 33. Bxb5 {[%clk 0:00:54.1]} 33... axb5
{[%clk 0:00:30.6]} 34. Ra6 {[%clk 0:00:46.3]} 34... Rc1+ {[%clk 0:00:28.5]} 35.
Kh2 {[%clk 0:00:45.5]} 35... Bc5 {[%clk 0:00:29]} 36. Ra7+ {[%clk 0:00:35.8]}
36... Ke8 {[%clk 0:00:27.1]} 37. Rc7 {[%clk 0:00:34.9]} 37... g4 {[%clk
0:00:25.3]} 38. Rc6 {[%clk 0:00:31.3]} 38... Rc2 {[%clk 0:00:12.1]} 39. b4
{[%clk 0:00:30.4]} 39... g3+ {[%clk 0:00:12.5]} 40. fxg3 {[%clk 0:00:29.8]} 1-0

[Event "*** Titled Tuesday Blitz"]
[Site "Chess.com"]
[Date "2021.03.02"]
[Round "2"]
[White "ChessteacherPalmS"]
[Black "Chernobay_Artem"]
[Result "1-0"]
[WhiteElo "2363"]
[BlackElo "2623"]
[TimeControl "180+1"]
[EndTime "10:17:41 PST"]
[Termination "ChessteacherPalmS won on time"]

1. d4 {[%clk 0:03:00.9]} 1... Nf6 {[%clk 0:02:58.3]} 2. c4 {[%clk 0:03:00.7]}
2... g6 {[%clk 0:02:58.9]} 3. Nc3 {[%clk 0:03:00.2]} 3... Bg7 {[%clk 0:02:59]}
4. e4 {[%clk 0:03:00.2]} 4... d6 {[%clk 0:02:59.6]} 5. Be2 {[%clk 0:03:00.6]}
5... O-O {[%clk 0:02:59.4]} 6. Nf3 {[%clk 0:03:00.9]} 6... e5 {[%clk 0:02:59.1]}
7. dxe5 {[%clk 0:03:00.5]} 7... dxe5 {[%clk 0:02:59]} 8. Qxd8 {[%clk 0:03:01.4]}
8... Rxd8 {[%clk 0:02:59.6]} 9. Bg5 {[%clk 0:03:02]} 9... Re8 {[%clk 0:02:59.1]}
10. O-O-O {[%clk 0:03:01.5]} 10... Na6 {[%clk 0:02:38.7]} 11. Nxe5 {[%clk
0:02:59.1]} 11... Rxe5 {[%clk 0:01:50.3]} 12. Rd8+ {[%clk 0:02:57.9]} 12... Ne8
{[%clk 0:01:45.1]} 13. f4 {[%clk 0:02:55.9]} 13... Re6 {[%clk 0:01:38.5]} 14.
Bg4 {[%clk 0:02:49.2]} 14... Kf8 {[%clk 0:01:33]} 15. Bxe6 {[%clk 0:02:45.6]}
15... fxe6 {[%clk 0:01:33]} 16. e5 {[%clk 0:02:38.3]} 16... b6 {[%clk
0:01:22.6]} 17. Rhd1 {[%clk 0:02:36.2]} 17... Bb7 {[%clk 0:01:08.2]} 18. Rxa8
{[%clk 0:01:57.8]} 18... Bxa8 {[%clk 0:01:09.1]} 19. g3 {[%clk 0:01:53.4]} 19...
h6 {[%clk 0:00:52.4]} 20. Bh4 {[%clk 0:01:42.8]} 20... Nc5 {[%clk 0:00:47.3]}
21. Rd8 {[%clk 0:01:31.1]} 21... Bf3 {[%clk 0:00:30.5]} 22. Nb5 {[%clk 0:01:26]}
22... Kf7 {[%clk 0:00:10.5]} 23. b4 {[%clk 0:01:10.8]} 23... Na6 {[%clk
0:00:10.1]} 24. a3 {[%clk 0:01:01]} 24... g5 {[%clk 0:00:09.3]} 25. fxg5 {[%clk
0:00:59.8]} 25... hxg5 {[%clk 0:00:10.2]} 26. Bxg5 {[%clk 0:00:58.8]} 26... Bxe5
{[%clk 0:00:10.8]} 27. Nxa7 {[%clk 0:00:56.1]} 27... Nd6 {[%clk 0:00:06.9]} 28.
Rd7+ {[%clk 0:00:38.7]} 28... Kg6 {[%clk 0:00:06.4]} 29. Bf4 {[%clk 0:00:28.6]}
29... Nxc4 {[%clk 0:00:03.6]} 30. b5 {[%clk 0:00:24.4]} 30... Nc5 {[%clk
0:00:02.5]} 31. Rxc7 {[%clk 0:00:19.4]} 31... Bxc7 {[%clk 0:00:02.1]} 32. Bxc7
{[%clk 0:00:19.5]} 32... Nd7 {[%clk 0:00:02.1]} 33. a4 {[%clk 0:00:15.6]} 1-0

[Event "*** Titled Tuesday Blitz"]
[Site "Chess.com"]
[Date "2021.03.02"]
[Round "2"]
[White "Schachspielerr"]
[Black "GUST_b"]
[Result "1-0"]
[WhiteElo "2684"]
[BlackElo "2367"]
[TimeControl "180+1"]
[EndTime "10:17:42 PST"]
[Termination "Schachspielerr won by resignation"]

1. d4 {[%clk 0:02:59.8]} 1... Nf6 {[%clk 0:02:59.9]} 2. c4 {[%clk 0:03:00.3]}
2... e6 {[%clk 0:03:00.1]} 3. Nc3 {[%clk 0:03:00]} 3... Bb4 {[%clk 0:03:00.4]}
4. e3 {[%clk 0:03:00.4]} 4... O-O {[%clk 0:02:49.4]} 5. Ne2 {[%clk 0:03:00.2]}
5... b6 {[%clk 0:02:47.2]} 6. a3 {[%clk 0:03:00.2]} 6... Bxc3+ {[%clk
0:02:45.4]} 7. Nxc3 {[%clk 0:03:01.1]} 7... Bb7 {[%clk 0:02:45.8]} 8. Bd3 {[%clk
0:02:54.5]} 8... c5 {[%clk 0:02:44]} 9. dxc5 {[%clk 0:02:51.8]} 9... bxc5 {[%clk
0:02:43.9]} 10. O-O {[%clk 0:02:52.4]} 10... Nc6 {[%clk 0:02:38.2]} 11. b3
{[%clk 0:02:35.2]} 11... Qe7 {[%clk 0:02:24]} 12. Bb2 {[%clk 0:02:33.9]} 12...
Rab8 {[%clk 0:02:23.6]} 13. Rb1 {[%clk 0:02:31.4]} 13... d6 {[%clk 0:02:23.3]}
14. Qe2 {[%clk 0:02:29.2]} 14... Rfd8 {[%clk 0:02:22.7]} 15. Rfd1 {[%clk
0:02:28.6]} 15... a5 {[%clk 0:02:14.5]} 16. Nb5 {[%clk 0:02:27.6]} 16... Ba6
{[%clk 0:02:13]} 17. Bc3 {[%clk 0:02:24.1]} 17... a4 {[%clk 0:01:51.3]} 18. bxa4
{[%clk 0:02:19.8]} 18... Nd7 {[%clk 0:01:47.5]} 19. Be4 {[%clk 0:02:18.2]} 19...
Nce5 {[%clk 0:01:40]} 20. Nxd6 {[%clk 0:02:06.2]} 20... Rxb1 {[%clk 0:01:31.3]}
21. Bxb1 {[%clk 0:02:07.1]} 21... f6 {[%clk 0:01:02.6]} 22. Nb5 {[%clk
0:01:52.6]} 22... Nb6 {[%clk 0:01:00.3]} 23. Rxd8+ {[%clk 0:01:30.4]} 23... Qxd8
{[%clk 0:01:01.2]} 24. Bxe5 {[%clk 0:01:30.5]} 24... fxe5 {[%clk 0:00:59.8]} 25.
Bc2 {[%clk 0:01:27.8]} 25... e4 {[%clk 0:00:43.7]} 26. h3 {[%clk 0:01:25.5]}
26... Qf6 {[%clk 0:00:43.7]} 27. Bxe4 {[%clk 0:01:18.6]} 27... Qa1+ {[%clk
0:00:43.6]} 28. Qf1 {[%clk 0:01:19.1]} 28... Qxf1+ {[%clk 0:00:41]} 29. Kxf1
{[%clk 0:01:20]} 29... Nxc4 {[%clk 0:00:41.4]} 30. Ke1 {[%clk 0:01:20.6]} 30...
h6 {[%clk 0:00:37.1]} 31. Nc7 {[%clk 0:01:10.5]} 31... Bc8 {[%clk 0:00:33.7]}
32. Bd3 {[%clk 0:01:08.3]} 32... Na5 {[%clk 0:00:27.9]} 33. Ba6 {[%clk
0:01:03.2]} 33... Bd7 {[%clk 0:00:24.8]} 34. Bb5 {[%clk 0:01:01.2]} 34... Bc8
{[%clk 0:00:25.3]} 35. Ne8 {[%clk 0:00:58.7]} 35... Kf8 {[%clk 0:00:21]} 36. Nd6
{[%clk 0:00:58.4]} 36... Bb7 {[%clk 0:00:16.7]} 37. Nxb7 {[%clk 0:00:52.3]}
37... Nxb7 {[%clk 0:00:17.6]} 38. Kd2 {[%clk 0:00:49.7]} 38... Ke7 {[%clk
0:00:18.1]} 39. Kd3 {[%clk 0:00:47.1]} 39... Na5 {[%clk 0:00:18.7]} 40. f4
{[%clk 0:00:47]} 40... Kd6 {[%clk 0:00:18.3]} 41. Ke4 {[%clk 0:00:44.6]} 41...
g6 {[%clk 0:00:16]} 42. h4 {[%clk 0:00:44]} 42... Ke7 {[%clk 0:00:15.3]} 43. Ke5
{[%clk 0:00:39.1]} 43... Kf7 {[%clk 0:00:15.7]} 44. Kd6 {[%clk 0:00:35.8]} 44...
Kf6 {[%clk 0:00:15.5]} 45. Kxc5 {[%clk 0:00:33]} 1-0

[Event "*** Titled Tuesday Blitz"]
[Site "Chess.com"]
[Date "2021.03.02"]
[Round "2"]
[White "PaulfromSPb"]
[Black "grunbergmihai"]
[Result "1-0"]
[WhiteElo "2681"]
[BlackElo "2476"]
[TimeControl "180+1"]
[EndTime "10:17:43 PST"]
[Termination "PaulfromSPb won by resignation"]

1. e4 {[%clk 0:03:00.9]} 1... Nf6 {[%clk 0:02:59.8]} 2. e5 {[%clk 0:03:00.9]}
2... Nd5 {[%clk 0:02:59.9]} 3. d4 {[%clk 0:03:01.6]} 3... d6 {[%clk 0:03:00.2]}
4. exd6 {[%clk 0:03:02.5]} 4... cxd6 {[%clk 0:03:00.1]} 5. c4 {[%clk 0:03:02.9]}
5... Nb6 {[%clk 0:02:59.9]} 6. Nc3 {[%clk 0:03:03.5]} 6... g6 {[%clk 0:03:00]}
7. Nf3 {[%clk 0:03:02.9]} 7... Bg7 {[%clk 0:02:59.9]} 8. Be3 {[%clk 0:02:59]}
8... O-O {[%clk 0:03:00.8]} 9. Be2 {[%clk 0:02:54.6]} 9... Bg4 {[%clk 0:03:00]}
10. O-O {[%clk 0:02:49]} 10... Nc6 {[%clk 0:02:57.4]} 11. b3 {[%clk 0:02:42.6]}
11... d5 {[%clk 0:02:56.3]} 12. c5 {[%clk 0:02:38.9]} 12... Nc8 {[%clk
0:02:56.1]} 13. b4 {[%clk 0:02:31.6]} 13... a6 {[%clk 0:02:54.2]} 14. Qd2 {[%clk
0:02:22.6]} 14... e6 {[%clk 0:02:51.5]} 15. Ne1 {[%clk 0:02:02.5]} 15... Bxe2
{[%clk 0:02:50.2]} 16. Nxe2 {[%clk 0:02:02.4]} 16... N8e7 {[%clk 0:02:49.5]} 17.
a4 {[%clk 0:02:00.7]} 17... Nf5 {[%clk 0:02:44.3]} 18. Nf3 {[%clk 0:01:56.5]}
18... Nxe3 {[%clk 0:02:39.4]} 19. fxe3 {[%clk 0:01:50.5]} 19... f5 {[%clk
0:02:31.3]} 20. Nf4 {[%clk 0:01:49.4]} 20... Re8 {[%clk 0:02:29.2]} 21. b5
{[%clk 0:01:49.6]} 21... axb5 {[%clk 0:02:26.9]} 22. axb5 {[%clk 0:01:50.5]}
22... Na5 {[%clk 0:02:26.7]} 23. Qc3 {[%clk 0:01:47]} 23... Nc4 {[%clk
0:02:24.6]} 24. Rxa8 {[%clk 0:01:43]} 24... Qxa8 {[%clk 0:02:24.2]} 25. Ra1
{[%clk 0:01:43.9]} 25... Qb8 {[%clk 0:02:21.3]} 26. g3 {[%clk 0:01:41.8]} 26...
Qd8 {[%clk 0:02:00.3]} 27. Ra7 {[%clk 0:01:29.1]} 27... e5 {[%clk 0:01:59.8]}
28. dxe5 {[%clk 0:01:21.8]} 28... Nxe5 {[%clk 0:01:59.6]} 29. Nxe5 {[%clk
0:01:19.9]} 29... Bxe5 {[%clk 0:01:55.2]} 30. Qb3 {[%clk 0:01:17.8]} 30... Bxf4
{[%clk 0:01:54.8]} 31. gxf4 {[%clk 0:01:13.9]} 31... Re7 {[%clk 0:01:38.5]} 32.
c6 {[%clk 0:01:07.6]} 32... bxc6 {[%clk 0:01:37.5]} 33. b6 {[%clk 0:00:57.5]}
33... Re8 {[%clk 0:01:12.9]} 34. b7 {[%clk 0:00:54.4]} 34... Qc7 {[%clk
0:01:05.5]} 35. Ra8 {[%clk 0:00:50.6]} 35... Rb8 {[%clk 0:01:05.1]} 36. Rxb8+
{[%clk 0:00:45.6]} 36... Qxb8 {[%clk 0:01:04.7]} 37. Qb6 {[%clk 0:00:45.6]}
37... Kg7 {[%clk 0:00:58.4]} 38. Qxc6 {[%clk 0:00:44]} 38... Qa7 {[%clk
0:00:54.4]} 39. Qc7+ {[%clk 0:00:38.1]} 39... Kh6 {[%clk 0:00:53.1]} 40. b8=Q
{[%clk 0:00:31.1]} 40... Qxe3+ {[%clk 0:00:52.3]} 41. Kf1 {[%clk 0:00:28]} 41...
Qd3+ {[%clk 0:00:42.7]} 42. Ke1 {[%clk 0:00:27.6]} 42... Qe3+ {[%clk 0:00:41]}
43. Kd1 {[%clk 0:00:27.7]} 43... Qg1+ {[%clk 0:00:38.4]} 44. Kc2 {[%clk
0:00:27.7]} 44... Qxh2+ {[%clk 0:00:38.6]} 45. Kb3 {[%clk 0:00:27.7]} 45... Qg3+
{[%clk 0:00:37.3]} 46. Ka4 {[%clk 0:00:27.9]} 1-0